{"text_format":"1","workbook":"xlsx","n_sheets":1,"sheets":["Лист1"],"not_rendered":{"charts":0,"images":0,"macros":1,"external_links":0,"defined_names":0,"comments":0,"pivot_tables":0},"unopened":[],"bounds":{"document_bytes":16777216,"sheet_cells":100000,"rows_first":2000,"rows_last":500,"rows_between":2000,"halvings":0,"cell_chars":16384,"cell_head_chars":4096},"cells_cut":0,"cells_raw":0,"read":"whole","date_system":"1900"}

{"sheet":"Лист1","index":0,"n_rows":35,"n_cols":100,"rows_kept":35,"cut":false,"hidden":false,"merged":[]}
["OFFICE_ID","INVOICE_DATE","PERSONAL_ACCOUNT","FIO","ADR_ABONENT","ADR_POST_INDECS","ADR_POST","NUMBER_ROOMS","SFULL","NUMBER_PEOPLE","SFULL_HOUSE","SFULL_ROOM","INDICATIONS_ODPU","INDICATIONS_ALL","INDICATIONS_ODN","METHOD_ODN","INDICATION_PAY_ODN","COST_ODN","CREDITED_ODN","RECALCULATION_ODN","RECALCULATION_NOTE_ODN","DISCOUNTS_ODN","TOTAL_ODN","DEVICE","DEVICE_NUMBER","DEVICE_RATIO","FINE","PAYMENT","COST_BUY","COST_DELIVERY","COST_ANY","DEBT","OVERPAY","PAY","DEBT_ALL","CONTROL_NUMBER","DEVICE_PEAK_F","DEVICE_PEAK_E","INDICATION_PEAK","INDICATION_PEAK_ALL","COST_PEAK","INDICATION_PAY_PEAK","CREDITED_PEAK","RECALCULATION_PEAK","RECALCULATION_NOTE_PEAK","DISCOUNTS_PEAK","TOTAL_PEAK","METHOD_PEAK","DEVICE_NOT_PEAK_F","DEVICE_NOT_PEAK_E","INDICATION_NOT_PEAK","INDICATION_NOT_PEAK_ALL","COST_NOT_PEAK","INDICATION_PAY_NOT_PEAK","CREDITED_NOT_PEAK","RECALCULATION_NOT_PEAK","RECALCULATION_NOTE_NOT_PEAK","DISCOUNTS_NOT_PEAK","TOTAL_NOT_PEAK","METHOD_NOT_PEAK","DEVICE_NIGHT_F","DEVICE_NIGHT_E","INDICATION_NIGHT","INDICATION_NIGHT_ALL","COST_NIGHT","INDICATION_PAY_NIGHT","CREDITED_NIGHT","RECALCULATION_NIGHT","RECALCULATION_NOTE_NIGHT","DISCOUNTS_NIGHT","TOTAL_NIGHT","METHOD_NIGHT","POSTAV_NAME","KOMP_POK","CITY1","CITY2","STREET","HOUSE","BUILDING","FLAT","DOG_CD","SPR_NAME","Условие1.1","Условие1","Условие2","Условие3","Условие4","Условие5","Условие6","Условие7","Условие8","Условие9","Условие10","Условие11","Условие12","Условие13","Условие14","Условие15","Условие16","Условие17"]
["OR-A-103","2013-06-30",2000,"Меленьчук Виктор Александрович","г.Оренбург, ул.70-летия ВЛКСМ, д.2 кв.43",460052,"г.Оренбург, ул.70-летия ВЛКСМ, д.2 кв.43",1,37.5,2,4283.3999999999996,461.9,0,0,69.290000000000006,"по площади",0.61,1.98,1.21,0,null,0,1.21,"СОИ-446М",3501136,1,0,0,64.63,28.17,5.44,88.33,0,88.33,98.23,23,19524,19573,49,49,1.98,49,97.02,0,null,0,97.02,"по показаниям",null,null,null,null,null,null,null,null,null,null,null,null,null,null,null,null,null,null,null,null,null,null,null,null,"ТСЖ \"Парковый\"  Оренбург","УК - ТСЖ \"Парковый\"  Оренбург","г. Оренбург",null,"ул. 70-летия ВЛКСМ",2,null,43,89346,"Оренбургэнерго ОГЭС",{"$f":"COUNTIF($C:$C,C2)","v":2},{"$f":"IF($CE2=1,TRUE,TRUE)","v":true},{"$f":"IF($AI2=$AU2+$BS2+$W2+$AB2+$AA2+$AF2+$AG2-$AH2,TRUE,FALSE)","v":true},null,null,null,{"$f":"IF($AM2=$AL2-$AK2,TRUE,FALSE)","v":true},{"$f":"IF($AU2=$AQ2+$AR2+$AT2,TRUE,FALSE)","v":true},{"$f":"IF($BS2=$BO2+$BP2+$BR2,TRUE,FALSE)","v":true},{"$f":"IF($W2=$S2+$T2+$V2,TRUE,FALSE)","v":true},null,null,true,{"$f":"IF($BO2=$BN2*$BM2,TRUE,FALSE)","v":true},{"$f":"IF($AQ2=$AP2*$AO2,TRUE,FALSE)","v":true},{"$f":"IF($S2<>$Q2*$R2,TRUE,FALSE)","v":true},{"$f":"IF($AP2>0,TRUE,FALSE)","v":true},{"$f":"IF($Q2>0,TRUE,FALSE)","v":true}]
["OR-103","2013-06-30",1131030113,"Бондарева Оксана Вячеславовна","г.Оренбург, ул.Просторная, д.19/4 кв.11",460052,"г.Оренбург, ул.Просторная, д.19/4 кв.11",2,63.4,1,0,0,0,0,0,null,0,0,0,0,null,0,0,"ЦЭ 6803В",68073523,1,0,0,177.83,76.319999999999993,14.96,538.12,0,0,807.22,82,12344,12539,195,195,1.38,195,269.10000000000002,0,null,0,269.10000000000002,"по среднему",null,null,null,null,null,null,null,null,null,null,null,null,null,null,null,null,null,null,null,null,null,null,null,null,"ОАО \"Оренбургэнергосбыт\"","СК - Оренбургэнерго ОГЭС","г. Оренбург",null,"ул. Просторная",19,4,11,59987,"Оренбургэнерго ОГЭС",{"$f":"COUNTIF($C:$C,C3)","v":1},{"$f":"IF($CE3=1,TRUE,FALSE)","v":true},{"$f":"IF($AI3=$AU3+$BS3+$W3+$AB3+$AA3+$AF3+$AG3-$AH3,TRUE,FALSE)","v":true},null,null,null,{"$f":"IF($AM3=$AL3-$AK3,TRUE,FALSE)","v":true},{"$f":"IF($AU3=$AQ3+$AR3+$AT3,TRUE,FALSE)","v":true},{"$f":"IF($BS3=$BO3+$BP3+$BR3,TRUE,FALSE)","v":true},{"$f":"IF($W3=$S3+$T3+$V3,TRUE,FALSE)","v":true},null,null,{"$f":"IF($AC3+$AD3+$AE3=$AQ3+$BO3+$S3,TRUE,FALSE)","v":false},{"$f":"IF($BO3=$BN3*$BM3,TRUE,FALSE)","v":true},{"$f":"IF($AQ3=$AP3*$AO3,TRUE,FALSE)","v":true},{"$f":"IF($S3=$Q3*$R3,TRUE,FALSE)","v":true},{"$f":"IF($AP3>0,TRUE,FALSE)","v":true},{"$f":"IF($Q3>0,TRUE,FALSE)","v":false}]
["OR-201","2013-06-30",5500404051,"Бурсукбаев Ахметулла Бахитжанович","г.Орск, ул.Новосибирская, д.72 кв.2",462404,"г.Орск, ул.Новосибирская, д.72 кв.2",1,16.100000000000001,1,393.5,45,0,0,6.75,"по площади",0.28000000000000003,1.98,0.55000000000000004,0,null,0,0.55000000000000004,"СО-505 (ФЛ)",718501,1,0,0,0.36,0.16,0.03,0,-250.05,0,-249.5,29,3536,3536,0,0,1.98,0,0,0,null,0,0,"по показаниям",null,null,null,null,null,null,null,null,null,null,null,null,null,null,null,null,null,null,null,null,null,null,null,null,"НФУ Орск","УК - НФУ Орск","г. Орск",null,"ул. Новосибирская",72,null,2,99999,"Оренбургэнерго ОрГЭС",1,true,true,null,null,null,true,true,true,true,null,null,true,true,true,false,false,true]
["OR-309","2013-06-30",7826500300,"Стецко Татьяна Борисовна","с.Тоцкое, ул.Светлая, д.3",461131,"с.Тоцкое, ул.Светлая, д.3",1,0,2,0,0,0,0,0,null,0,0,0,0,null,0,0,"СО-И466",154660,1,0,0,266.27999999999997,114.28,22.4,431.94,0,431.94,402.96,66,27598,27890,292,292,1.38,292,402.96,0,null,0,402.96,"по показаниям",null,null,null,null,null,null,null,null,null,null,null,null,null,null,null,null,null,null,null,null,null,null,null,null,"ОАО \"Оренбургэнергосбыт\"","СК - Оренбургэнерго ЗПО","с. Тоцкое",null,"ул. Светлая",3,null,null,68005,"Оренбургэнерго ЗПО",1,true,true,null,null,null,true,true,true,true,null,null,true,true,true,true,true,false]
["OR-301","2013-06-30",4323685206,"Столяров Виктор Николаевич","г.Бузулук, ул.Совхозная, д.1 кв.2",461040,"г.Бузулук, ул.Совхозная, д.1 кв.2",1,0,1,0,0,0,0,0,null,0,0,0,0,null,0,0,"СЕ101",7790000000000,1,0,0,282.7,123.18,23.78,198,0,198,429.66,19,1611,1828,217,217,1.98,217,429.66,0,null,0,429.66,"по показаниям",null,null,null,null,null,null,null,null,null,null,null,null,null,null,null,null,null,null,null,null,null,null,null,null,"ОАО \"Оренбургэнергосбыт\"","СК - ГУП \"ОКЭС\" Западный","г. Бузулук",null,"ул. Совхозная",1,null,2,69001,"ГУП \"ОКЭС\" Западный",1,true,true,null,null,null,true,true,true,true,null,null,true,true,true,true,true,false]
["OR-401","2013-06-30",3308908040,"Смирнов Сергей Георгиевич","г.Бугуруслан, пер.Электриков, д.3 кв.4",461631,"г.Бугуруслан, пер.Электриков, д.3 кв.4",1,58.6,2,735.39,153.97,0,0,23.1,"по площади",1.84,1.98,3.64,0,null,0,3.64,"СО-505 (ФЛ)",6472,1,0,0,253.83,110.6,21.35,329.93,0,329.93,385.78,82,15034,15227,193,193,1.98,193,382.14,0,null,0,382.14,"по показаниям",null,null,null,null,null,null,null,null,null,null,null,null,null,null,null,null,null,null,null,null,null,null,null,null,"НФУ Бугуруслана","УК - НФУ Бугуруслана","г. Бугуруслан",null,"пер. Электриков",3,null,4,78003,"Оренбургэнерго СПО",2,false,true,null,null,null,true,true,true,true,null,null,true,true,true,false,true,true]
["OR-106","2013-06-30",2241800270,"Чекаев Виктор Емельянович","с.Веселый Первый, ул.Молодежная, д.16 кв.2",461560,"с.Веселый Первый, ул.Молодежная, д.16 кв.2",2,48,4,0,0,0,0,0,null,0,0,0,0,null,0,0,"РиМ 114.01","818129(6)",1,0,0,477.85,205.07,40.200000000000003,409.86,0,409.86,723.12,89,7409,7933,524,524,1.38,524,723.12,0,null,0,723.12,"по показаниям",null,null,null,null,null,null,null,null,null,null,null,null,null,null,null,null,null,null,null,null,null,null,null,null,"ОАО \"Оренбургэнергосбыт\"","СК - Оренбургэнерго ЦЭС","с. Веселый Первый",null,"ул. Молодежная",16,null,2,59998,"Оренбургэнерго ЦЭС",2,false,true,null,null,null,true,true,true,true,null,null,true,true,true,true,true,false]
["OR-303","2013-06-30",7518340615,"Багиров Ахмед Гасаналиевич","п.Клинок, ул.Центральная, д.71",461150,"п.Клинок, ул.Центральная, д.71",1,0,4,0,0,0,0,0,null,0,0,0,0,null,0,0,"РиМ 189.02 (ФЛ)",975294,1,0,0,683.04,293.13,57.46,1755.9,0,1760.6,-442.16,55,4171,4920,749,749,1.38,749,1033.6199999999999,-1471.08,"Показания",0,-437.46,"по показаниям",null,null,null,null,null,null,null,null,null,null,null,null,null,null,null,null,null,null,null,null,null,null,null,null,"ОАО \"Оренбургэнергосбыт\"","СК - Оренбургэнерго ЗПО","п. Клинок",null,"ул. Центральная",71,null,null,68003,"Оренбургэнерго ЗПО",2,false,true,null,null,null,true,true,true,true,null,null,false,true,true,true,true,false]
["OR-102","2013-06-30",1110553413,"Лежнин Михаил Александрович","г.Оренбург, пр-кт.Гагарина, д.23/а кв.197",460040,"г.Оренбург, пр-кт.Гагарина, д.23/а кв.197",1,78.3,1,0,0,0,0,0,null,0,0,0,0,null,1,0,"Лейне Электро - 01",6378,1,0,0,195.41,85.15,16.440000000000001,320.76,0,320.76,297,56,4217,4367,150,150,1.98,150,297,0,null,0,297,"по показаниям",null,null,null,null,null,null,null,null,null,null,null,null,null,null,null,null,null,null,null,null,null,null,null,null,"ОАО \"Оренбургэнергосбыт\"","СК - Оренбургэнерго ОГЭС","г. Оренбург",null,"пр-кт. Гагарина",23,"а",197,59987,"Оренбургэнерго ОГЭС",2,false,true,null,null,null,true,true,true,false,null,null,true,true,true,true,true,false]
["OR-A-102","2013-06-30",102000,"Фролов Константин Геннадьевич","г.Оренбург, ул.Амурская, д.8 кв.21",460045,"г.Оренбург, ул.Амурская, д.8 кв.21",1,63.1,1,8435.6,3770.1,26591,19353,7238,"по площади",28.2,1.98,55.84,0,null,0,55.84,"ЦЭ6807П",7130000000000,1,0,0,186.56,81.290000000000006,15.69,222.85,0,223.68,282.70999999999998,68,3862,3977,115,115,1.98,115,227.7,0,null,0,227.7,"по показаниям",null,null,null,null,null,null,null,null,null,null,null,null,null,null,null,null,null,null,null,null,null,null,null,null,"ТСЖ \"Дельта\"  Оренбург","УК - ТСЖ \"Дельта\"  Оренбург","г. Оренбург",null,"ул. Амурская",8,null,21,89562,"Оренбургэнерго ОГЭС",1,true,true,null,null,null,true,true,true,true,null,null,true,true,true,false,true,true]
["OR-A-103","2013-06-30",112000,"Идрисов Манур Мухлисович","г.Оренбург, ул.Дружбы, д.2/1 кв.75",460047,"г.Оренбург, ул.Дружбы, д.2/1 кв.75",1,45.3,1,4671.6000000000004,1733.6,14055,12399,1656,"по площади",16.059999999999999,1.98,31.8,0,null,0,31.8,"СОИ-446 (10-34)",9957620,1,0,0,157.71,68.72,13.27,873.98,0,0,1113.68,91,2844,2949,105,105,1.98,105,207.9,0,null,0,207.9,"по показаниям",null,null,null,null,null,null,null,null,null,null,null,null,null,null,null,null,null,null,null,null,null,null,null,null,"ТСЖ \"Гарант\" г.Оренбург","УК - ТСЖ \"Гарант\" г.Оренбург","г. Оренбург",null,"ул. Дружбы",2,1,75,89494,"Оренбургэнерго ОГЭС",1,true,true,null,null,null,true,true,true,true,null,null,true,true,true,false,true,true]
["OR-301","2013-06-30",4322679909,"Масягина НЕ ЗАДАНО","г.Бузулук, ул.Краснодарская, д.84",461042,"г.Бузулук, ул.Краснодарская, д.84",1,0,2,0,0,0,0,0,null,0,0,0,0,null,0,0,"СОИ-449М1-1",40176,1,1.52,0,633.14,275.88,53.26,922.82,0,940.9,945.72,72,28220,28706,486,486,1.98,486,962.28,0,null,0,962.28,"по показаниям",null,null,null,null,null,null,null,null,null,null,null,null,null,null,null,null,null,null,null,null,null,null,null,null,"ОАО \"Оренбургэнергосбыт\"","СК - ГУП \"ОКЭС\" Западный","г. Бузулук",null,"ул. Краснодарская",84,null,null,69001,"ГУП \"ОКЭС\" Западный",1,true,true,null,null,null,true,true,true,true,null,null,true,true,true,true,true,false]
["OR-403","2013-06-30",3202130430,"Васильева Анастасия Сергеевна","с.Аксютино, ул.Набережная, д.13",461713,"с.Аксютино, ул.Набережная, д.13",1,0,1,0,0,0,0,0,null,0,0,0,0,null,0,0,"СО-505 (ФЛ)",50087,1,0,0,0,0,0,0,-0.17,0,-0.17,53,2465,2465,0,0,1.38,0,0,0,null,0,0,"по показаниям",null,null,null,null,null,null,null,null,null,null,null,null,null,null,null,null,null,null,null,null,null,null,null,null,"ОАО \"Оренбургэнергосбыт\"","СК - Оренбургэнерго СПО","с. Аксютино",null,"ул. Набережная",13,null,null,78002,"Оренбургэнерго СПО",1,true,true,null,null,null,true,true,true,true,null,null,true,true,true,true,false,false]
["OR-104","2013-06-30",1125030107,"Лысенко Алексей Иванович","г.Оренбург, ул.Шевченко, д.231 кв.10",460048,"г.Оренбург, ул.Шевченко, д.231 кв.10",1,61.6,2,0,0,0,0,0,null,0,0,0,0,null,0,0,"СО-505 (ФЛ)",522821,1,0,0,22.15,9.65,1.86,43.56,0,43.56,33.659999999999997,66,13837,13854,17,17,1.98,17,33.659999999999997,0,null,0,33.659999999999997,"по показаниям",null,null,null,null,null,null,null,null,null,null,null,null,null,null,null,null,null,null,null,null,null,null,null,null,"ОАО \"Оренбургэнергосбыт\"","СК - Оренбургэнерго ОГЭС","г. Оренбург",null,"ул. Шевченко",231,null,10,59987,"Оренбургэнерго ОГЭС",1,true,true,null,null,null,true,true,true,true,null,null,true,true,true,true,true,false]
["OR-105","2013-06-30",1144230966,"Егоров Сергей Иванович","г.Оренбург, ул.Пролетарская, д.261 кв.96",460022,"г.Оренбург, ул.Пролетарская, д.261 кв.96",1,59.7,4,0,0,0,0,0,null,0,0,0,0,null,0,0,"СЭБ-1МТ",903111094,1,0,0,46.9,20.440000000000001,3.95,0,-849.42,0,-778.14,86,545,581,36,36,1.98,36,71.28,0,null,0,71.28,"по показаниям",null,null,null,null,null,null,null,null,null,null,null,null,null,null,null,null,null,null,null,null,null,null,null,null,"ОАО \"Оренбургэнергосбыт\"","СК - Оренбургэнерго ОГЭС","г. Оренбург",null,"ул. Пролетарская",261,null,96,59987,"Оренбургэнерго ОГЭС",1,true,true,null,null,null,true,true,true,true,null,null,false,true,true,true,true,false]
["OR-A-103","2013-06-30",212000,"Валетов Андрей Анатольевич",".Оренбург, .Салмышская, д.74 кв.146",460052,".Оренбург, .Салмышская, д.74 кв.146",2,56.1,1,16609.8,6765.9,65101,57058,8043,"по площади",27.17,1.38,37.49,0,null,0,37.49,"СЕ101",7790000000000,1,0,0,144.24,61.9,12.13,219.49,0,219.5,218.26,92,914,1045,131,131,1.38,131,180.78,0,null,0,180.78,"по среднему",null,null,null,null,null,null,null,null,null,null,null,null,null,null,null,null,null,null,null,null,null,null,null,null,"ООО \"Оренбургская управляющая компания\"","УК - ООО \"Оренбургская управляющая компания\"","Оренбург",null,"Салмышская",74,null,146,89670,"Оренбургэнерго ОГЭС",1,true,true,null,null,null,true,true,true,true,null,null,true,true,true,false,true,true]
["OR-301","2013-06-30",7016560810,"Евдокимов Геннадий Алексеевич","с.Преображенка, ул.Первомайская, д.113",461025,"с.Преображенка, ул.Первомайская, д.113",3,48,2,0,0,0,0,0,null,0,0,0,0,null,0,0,"СОИ-449М2-5",93538,1,0,0,92.11,39.53,7.75,133.86000000000001,0,133.86000000000001,139.38,27,7046,7147,101,101,1.38,101,139.38,0,null,0,139.38,"по показаниям",null,null,null,null,null,null,null,null,null,null,null,null,null,null,null,null,null,null,null,null,null,null,null,null,"ОАО \"Оренбургэнергосбыт\"","СК - Оренбургэнерго ЗПО","с. Преображенка",null,"ул. Первомайская",113,null,null,68001,"Оренбургэнерго ЗПО",1,true,true,null,null,null,true,true,true,true,null,null,false,true,true,true,true,false]
["OR-109","2013-06-30",2210502460,"Хахулина Александра Алексеевна","с.Рассыпное, ул.Ленина, д.4",461359,"с.Рассыпное, ул.Ленина, д.4",1,32,2,0,0,0,0,0,null,0,0,0,0,null,0,0,"СОИ-449М2-5",98576,1,0,0,80.25,34.44,6.75,95.22,0,95.22,121.44,3,6395,6483,88,88,1.38,88,121.44,0,null,0,121.44,"по показаниям",null,null,null,null,null,null,null,null,null,null,null,null,null,null,null,null,null,null,null,null,null,null,null,null,"ОАО \"Оренбургэнергосбыт\"","СК - Оренбургэнерго ЦЭС","с. Рассыпное",null,"ул. Ленина",4,null,null,59999,"Оренбургэнерго ЦЭС",1,true,true,null,null,null,true,true,true,true,null,null,true,true,true,true,true,false]
["OR-A-104","2013-06-30",312000,"Берестова Людмила Ивановна","г.Оренбург, ул.Аксакова, д.24/1 кв.49",460024,"г.Оренбург, ул.Аксакова, д.24/1 кв.49",1,48.2,1,3439.6,1099.9000000000001,0,0,164.99,"по площади",2.31,1.98,4.57,0,null,0,4.57,"СОИ-446 (10-34)",6585967,1,0,0,117.65,51.26,9.89,1638.07,0,1638.9,177.98,93,138,226,88,88,1.98,88,174.24,0,null,0,174.24,"по показаниям",null,null,null,null,null,null,null,null,null,null,null,null,null,null,null,null,null,null,null,null,null,null,null,null,"ООО \"Оренбургская управляющая компания\"","УК - ООО \"Оренбургская управляющая компания\"","г. Оренбург",null,"ул. Аксакова",24,1,49,89670,"Оренбургэнерго ОГЭС",1,true,true,null,null,null,true,true,true,true,null,null,false,true,true,false,true,true]
[null,null,2000,null,null,null,null,null,null,null,null,null,null,null,null,null,null,null,null,null,null,null,null,null,null,null,null,null,null,null,null,null,null,null,null,null,null,null,null,null,null,null,null,null,null,null,null,null,null,null,null,null,null,null,null,null,null,null,null,null,null,null,null,null,null,null,null,null,null,null,null,null,null,null,null,null,null,null,null,null,null,null,2,false,true,null,null,null,true,true,true,true,null,null,true,true,true,true,false,false]
[1]
[1]
[1]
[1]
[1]
[1]
[1]
[1]
[1]
[1]
["OR-401","2013-06-30",3308908040,"Смирнов Сергей Георгиевич","г.Бугуруслан, пер.Электриков, д.3 кв.4",461631,"г.Бугуруслан, пер.Электриков, д.3 кв.4",1,58.6,2,735.39,153.97,0,0,23.1,"по площади",1.84,1.98,3.64,0,null,0,3.64,"СО-505 (ФЛ)",6472,1,0,0,253.83,110.6,21.35,329.93,0,329.93,385.78,82,15034,15227,193,193,1.98,193,382.14,0,null,0,382.14,"по показаниям",null,null,null,null,null,null,null,null,null,null,null,null,null,null,null,null,null,null,null,null,null,null,null,null,"НФУ Бугуруслана","УК - НФУ Бугуруслана","г. Бугуруслан",null,"пер. Электриков",3,null,4,78003,"Оренбургэнерго СПО",{"$f":"COUNTIF($C:$C,C32)","v":2},{"$f":"IF($CE32=1,TRUE,FALSE)","v":false},{"$f":"IF($AI32=$AU32+$BS32+$W32+$AB32+$AA32+$AF32+$AG32-$AH32,TRUE,FALSE)","v":true},null,null,null,{"$f":"IF($AM32=$AL32-$AK32,TRUE,FALSE)","v":true},{"$f":"IF($AU32=$AQ32+$AR32+$AT32,TRUE,FALSE)","v":true},{"$f":"IF($BS32=$BO32+$BP32+$BR32,TRUE,FALSE)","v":true},{"$f":"IF($W32=$S32+$T32+$V32,TRUE,FALSE)","v":true},null,null,{"$f":"IF($AC32+$AD32+$AE32=$AQ32+$BO32+$S32,TRUE,FALSE)","v":true},{"$f":"IF($BO32=$BN32*$BM32,TRUE,FALSE)","v":true},{"$f":"IF($AQ32=$AP32*$AO32,TRUE,FALSE)","v":true},{"$f":"IF($S32=$Q32*$R32,TRUE,FALSE)","v":false},{"$f":"IF($AP32>0,TRUE,FALSE)","v":true},{"$f":"IF($Q32>0,TRUE,FALSE)","v":true}]
["OR-106","2013-06-30",2241800270,"Чекаев Виктор Емельянович","с.Веселый Первый, ул.Молодежная, д.16 кв.2",461560,"с.Веселый Первый, ул.Молодежная, д.16 кв.2",2,48,4,0,0,0,0,0,null,0,0,0,0,null,0,0,"РиМ 114.01","818129(6)",1,0,0,477.85,205.07,40.200000000000003,409.86,0,409.86,723.12,89,7409,7933,524,524,1.38,524,723.12,0,null,0,723.12,"по показаниям",null,null,null,null,null,null,null,null,null,null,null,null,null,null,null,null,null,null,null,null,null,null,null,null,"ОАО \"Оренбургэнергосбыт\"","СК - Оренбургэнерго ЦЭС","с. Веселый Первый",null,"ул. Молодежная",16,null,2,59998,"Оренбургэнерго ЦЭС",2,false,true,null,null,null,true,true,true,true,null,null,true,true,true,true,true,false]
["OR-303","2013-06-30",7518340615,"Багиров Ахмед Гасаналиевич","п.Клинок, ул.Центральная, д.71",461150,"п.Клинок, ул.Центральная, д.71",1,0,4,0,0,0,0,0,null,0,0,0,0,null,0,0,"РиМ 189.02 (ФЛ)",975294,1,0,0,683.04,293.13,57.46,1755.9,0,1760.6,-442.16,55,4171,4920,749,749,1.38,749,1033.6199999999999,-1471.08,"Показания",0,-437.46,"по показаниям",null,null,null,null,null,null,null,null,null,null,null,null,null,null,null,null,null,null,null,null,null,null,null,null,"ОАО \"Оренбургэнергосбыт\"","СК - Оренбургэнерго ЗПО","п. Клинок",null,"ул. Центральная",71,null,null,68003,"Оренбургэнерго ЗПО",2,false,true,null,null,null,true,true,true,true,null,null,false,true,true,true,true,false]
["OR-102","2013-06-30",1110553413,"Лежнин Михаил Александрович","г.Оренбург, пр-кт.Гагарина, д.23/а кв.197",460040,"г.Оренбург, пр-кт.Гагарина, д.23/а кв.197",1,78.3,1,0,0,0,0,0,null,0,0,0,0,null,1,0,"Лейне Электро - 01",6378,1,0,0,195.41,85.15,16.440000000000001,320.76,0,320.76,297,56,4217,4367,150,150,1.98,150,297,0,null,0,297,"по показаниям",null,null,null,null,null,null,null,null,null,null,null,null,null,null,null,null,null,null,null,null,null,null,null,null,"ОАО \"Оренбургэнергосбыт\"","СК - Оренбургэнерго ОГЭС","г. Оренбург",null,"пр-кт. Гагарина",23,"а",197,59987,"Оренбургэнерго ОГЭС",2,false,true,null,null,null,true,true,true,false,null,null,true,true,true,true,true,false]